bitfinex/quotes_BTCUSD_20250414
["timestamp","ask_amount","ask_price","bid_price","bid_amount"]
[1744643933409,0.00098248,84638.0,84637.0,0.28588154]
[1744643933812,0.00098248,84638.0,84637.0,0.29188154]
[1744643934058,0.00098248,84638.0,84637.0,0.28788154]
[1744643934261,0.00098248,84638.0,84637.0,0.12084154]
[1744643934480,4.8e-07,84638.0,84637.0,0.62984154]
[1744643934684,4.8e-07,84642.0,84641.0,0.576292]
[1744643935480,4.8e-07,84649.0,84648.0,0.236272]
[1744643935695,4.8e-07,84649.0,84648.0,0.23863444]
[1744643935852,4.8e-07,84649.0,84648.0,0.236272]
[1744643936194,4.8e-07,84649.0,84646.0,0.011813]
[1744643937046,4.8e-07,84649.0,84648.0,0.001]
[1744643937587,4.8e-07,84649.0,84648.0,0.0033624]
[1744643938058,4.8e-07,84649.0,84648.0,0.0023624]
[1744643938261,0.0004217,84667.0,84650.0,0.0499]
[1744643938465,0.00056013,84667.0,84658.0,0.34]
[1744643938669,0.00056013,84667.0,84659.0,0.12084154]
[1744643938803,0.00056013,84667.0,84660.0,0.34]
[1744643939206,0.00056013,84667.0,84650.0,0.0589471]
[1744643939418,0.00056013,84667.0,84650.0,0.0499]
[1744643939614,0.00056013,84667.0,84646.0,0.001]
[1744643939860,0.00056013,84667.0,84639.0,1.15426]
[1744643939861,0.00056013,84667.0,84648.0,0.001]
[1744643940056,0.00056013,84667.0,84646.0,0.16496]
[1744643940274,0.12084154,84666.0,84660.0,0.002]
[1744643940643,0.00704673,84665.0,84644.0,0.16496]
[1744643940848,0.12084154,84664.0,84648.0,0.007]
[1744643941049,0.00056013,84667.0,84648.0,0.011]
[1744643941270,0.00702317,84663.0,84648.0,0.004]
[1744643941483,0.12084154,84666.0,84648.0,0.004]
[1744643941672,0.00701635,84662.0,84660.0,0.001]
[1744643941875,0.00056013,84667.0,84660.0,0.001]
[1744643942072,0.00700953,84661.0,84660.0,0.001]
[1744643942292,0.12140167,84667.0,84660.0,0.001]
[1744643942447,0.00700953,84661.0,84660.0,0.001]
[1744643942651,0.00056013,84667.0,84660.0,0.001]
[1744643942863,0.00700953,84661.0,84648.0,0.00236247]
[1744643943066,0.00056013,84667.0,84648.0,0.00536247]
[1744643943270,0.00056013,84667.0,84650.0,0.32149509]
[1744643943470,0.00056013,84667.0,84651.0,0.12320382]
[1744643943690,0.00056013,84667.0,84660.0,0.001]
[1744643943850,0.00056013,84667.0,84650.0,0.00904006]
[1744643944087,0.00056013,84667.0,84648.0,0.1648]
[1744643944311,0.12140167,84667.0,84649.0,0.34]
[1744643944555,0.00705343,84666.0,84649.0,0.34]
[1744643944712,0.12140167,84667.0,84649.0,0.34]
[1744643945065,0.01454085,84678.0,84649.0,0.34]
[1744643945264,0.01288212,84679.0,84649.0,0.34]
[1744643945265,0.01454085,84676.0,84649.0,0.34013843]
[1744643945415,0.01454085,84674.0,84649.0,0.00013843]
[1744643945616,0.12084154,84673.0,84649.0,0.00013843]
[1744643945860,0.12792889,84673.0,84650.0,0.004]
[1744643946067,0.12792889,84673.0,84650.0,0.007]
[1744643946378,0.00708735,84673.0,84652.0,0.0476]
[1744643946586,0.002,84679.0,84652.0,0.16844154]
[1744643946715,0.12284154,84679.0,84652.0,0.16844154]
[1744643946921,0.00712178,84678.0,84652.0,0.16844154]
[1744643947344,0.00712178,84678.0,84653.0,0.00236214]
[1744643947747,0.00712178,84678.0,84652.0,0.17144154]
[1744643948825,0.12284154,84679.0,84652.0,0.16844154]
[1744643949026,0.12284154,84679.0,84652.0,0.17044154]
[1744643949223,0.12284154,84679.0,84652.0,0.17344154]
[1744643949427,0.12084154,84678.0,84652.0,0.16776]
[1744643949654,0.00712178,84678.0,84653.0,0.12320381]
[1744643949856,0.00477872,84678.0,84653.0,0.12320381]
[1744643950256,0.00477872,84678.0,84654.0,0.34]
[1744643950534,0.002,84679.0,84660.0,0.32149509]
[1744643950787,0.002,84679.0,84661.0,0.12320338]
[1744643951592,0.002,84679.0,84661.0,0.12084154]
[1744643951853,0.002,84679.0,84661.0,0.01202063]
[1744643952198,0.00480389,84678.0,84656.0,0.0496]
[1744643952399,0.002,84679.0,84656.0,0.06121767]
[1744643952818,0.002,84679.0,84673.0,0.01181]
[1744643953060,0.01091496,84678.0,84673.0,0.01181]
[1744643953216,0.01571149,84678.0,84677.0,0.236191]
[1744643954484,0.03760332,84678.0,84677.0,0.236191]
[1744643955099,0.03750428,84678.0,84677.0,0.236191]
[1744643955229,0.01181,84673.0,84656.0,0.02442967]
[1744643955442,0.236247,84657.0,84656.0,0.00013843]
[1744643955648,0.76042939,84657.0,84656.0,0.00013843]
[1744643955828,0.53119799,84657.0,84656.0,0.00013843]
[1744643956032,0.55308074,84657.0,84656.0,0.00013843]
[1744643956733,0.55308074,84657.0,84656.0,0.00213843]
[1744643956896,0.55308074,84657.0,84656.0,0.00113843]
[1744643957097,0.54606514,84657.0,84656.0,0.00113843]
[1744643957297,0.5550782,84657.0,84656.0,0.00113843]
[1744643959106,0.5550782,84657.0,84656.0,0.00013843]
[1744643959344,0.5570782,84657.0,84656.0,0.00013843]
[1744643960999,0.9735782,84657.0,84656.0,0.00013843]
[1744643961799,1.09145545,84657.0,84656.0,0.00013843]
[1744643962002,1.09145545,84657.0,84619.0,0.000843]
[1744643962003,0.011816,84624.0,84619.0,0.000843]
[1744643962245,0.02856411,84623.0,84620.0,0.248167]
[1744643962384,0.02856411,84623.0,84621.0,0.236346]
[1744643962592,0.02188275,84623.0,84621.0,0.236346]
[1744643962787,0.02188275,84622.0,84621.0,0.236346]
[1744643963224,0.011815,84632.0,84627.0,0.011816]
[1744643963434,0.011815,84632.0,84625.0,0.236335]
[1744643963435,0.01454085,84630.0,84624.0,0.011816]
[1744643963637,0.12084154,84630.0,84626.0,0.236333]
[1744643963833,0.00664766,84629.0,84627.0,0.236329]
[1744643964211,0.011816,84627.0,84622.0,0.24816]
[1744643964415,0.011816,84624.0,84619.0,0.00098148]
[1744643964609,0.011816,84626.0,84622.0,0.236344]
[1744643964909,0.25477337,84625.0,84622.0,0.011817]
[1744643965049,0.01843637,84625.0,84621.0,0.011817]
[1744643965245,0.00662037,84625.0,84623.0,0.23634]
[1744643965875,0.001,84667.0,84635.0,0.236306]
[1744643966090,0.32149509,84670.0,84634.0,0.011815]
[1744643966091,0.236281,84645.0,84639.0,0.011814]
[1744643966291,0.12084154,84645.0,84642.0,0.236287]
[1744643966442,0.011814,84644.0,84640.0,0.236288]
[1744643966887,0.236284,84644.0,84641.0,0.248105]
[1744643967091,0.248096,84645.0,84641.0,0.248105]
[1744643967471,0.248095,84645.0,84642.0,0.236287]
[1744643967879,0.248095,84645.0,84636.0,0.011815]
[1744643967880,0.011812,84657.0,84626.0,0.236333]
[1744643968109,0.77359454,84655.0,84652.0,0.236261]
[1744643968318,0.428312,84655.0,84652.0,0.236261]
[1744643968520,0.4165,84663.0,84656.0,0.011812]
[1744643968723,0.401034,84662.0,84658.0,0.011812]
[1744643969016,0.4165,84663.0,84642.0,0.01174844]
[1744643969017,0.236287,84643.0,84642.0,0.01174844]
[1744643969219,0.011814,84644.0,84633.0,0.011815]
[1744643969418,0.011814,84644.0,84626.0,0.1668]
[1744643969419,0.011813,84650.0,84647.0,0.011813]
[1744643969627,0.004,84655.0,84652.0,0.248074]
[1744643969757,0.12084154,84654.0,84652.0,0.248074]
[1744643969960,0.12084154,84654.0,84652.0,0.23626]
[1744643970201,0.12084154,84654.0,84651.0,0.011813]
[1744643970401,0.236259,84653.0,84650.0,0.011813]
[1744643970555,0.004,84655.0,84654.0,0.236255]
[1744643970775,0.004,84655.0,84652.0,0.248074]
[1744643970981,0.011813,84648.0,84625.0,0.05377317]
[1744643971180,0.4165,84659.0,84636.0,0.011815]
[1744643971181,0.011814,84642.0,84636.0,0.011815]
[1744643971379,0.011814,84642.0,84634.0,0.011815]
[1744643971380,0.236302,84638.0,84634.0,0.248126]
[1744643971583,0.00673407,84637.0,84635.0,0.011815]
[1744643972047,0.00673407,84637.0,84635.0,0.248122]
[1744643972430,0.236298,84639.0,84635.0,0.248122]
[1744643972751,0.236308,84635.0,84634.0,0.003]
[1744643972965,0.011816,84626.0,84622.0,0.011817]
[1744643973230,0.011816,84628.0,84625.0,0.23647348]
[1744643973424,0.236333,84626.0,84625.0,0.00013848]
[1744643973694,0.248145,84628.0,84625.0,0.23647448]
[1744643974077,0.011816,84628.0,84625.0,0.24829048]
[1744643974280,0.248144,84628.0,84625.0,0.24829048]
[1744643974534,0.248144,84628.0,84626.0,0.236333]
[1744643974535,0.011816,84628.0,84626.0,0.236333]
[1744643974714,0.236317,84632.0,84629.0,0.236325]
[1744643974913,0.248127,84634.0,84630.0,0.23632]
[1744643975115,0.011814,84644.0,84635.0,0.236307]
[1744643975326,0.011814,84639.0,84635.0,0.011815]
[1744643975521,0.011815,84637.0,84634.0,0.236311]
[1744643975739,0.011815,84637.0,84633.0,0.011815]
[1744643975943,0.25484825,84636.0,84632.0,0.236314]
[1744643976124,0.011815,84633.0,84625.0,0.01196645]
[1744643976306,0.011815,84634.0,84625.0,0.01496645]
[1744643976505,0.00669996,84632.0,84625.0,0.01496645]
[1744643976711,0.011816,84629.0,84625.0,0.01496645]
[1744643977017,0.236333,84626.0,84625.0,0.00313848]
[1744643977211,0.24299203,84626.0,84625.0,0.00313848]
[1744643977770,0.24299203,84626.0,84625.0,0.00013848]
[1744643978747,0.24299203,84626.0,84625.0,0.00113848]
[1744643978975,0.24299203,84626.0,84625.0,0.00313848]
[1744643983012,0.236333,84626.0,84625.0,0.00313848]
[1744643984565,0.37171539,84626.0,84625.0,0.00313848]
[1744643985367,0.37171539,84626.0,84625.0,0.00213848]
[1744643985785,0.37171539,84626.0,84625.0,0.00013848]
[1744643985996,0.236333,84626.0,84625.0,0.00013848]
[1744643986420,0.239333,84626.0,84625.0,0.00013848]
[1744643986795,0.24019099,84626.0,84625.0,0.00013848]
[1744643987388,0.23919099,84626.0,84625.0,0.00013848]
[1744643987597,0.24119099,84626.0,84625.0,0.00013848]
[1744643989138,0.24119099,84626.0,84625.0,4.8e-07]
[1744643989139,0.79307338,84626.0,84625.0,4.8e-07]
[1744643989249,0.79307338,84626.0,84620.0,2.8e-07]
[1744643989250,0.25088785,84621.0,84620.0,2.8e-07]
[1744643989476,0.25089085,84620.0,84619.0,2.8e-07]
[1744643989689,0.38267644,84620.0,84619.0,2.8e-07]
[1744643989895,0.36813559,84620.0,84619.0,2.8e-07]
[1744643990557,0.24729405,84620.0,84619.0,2.8e-07]
[1744643991258,0.23635,84620.0,84619.0,2.8e-07]
[1744643991462,0.23935,84620.0,84619.0,2.8e-07]
[1744643991661,0.003,84620.0,84619.0,2.8e-07]
[1744643992001,0.23935,84620.0,84619.0,2.8e-07]
[1744643992202,0.24235,84620.0,84619.0,2.8e-07]
[1744643993524,0.23935,84620.0,84619.0,2.8e-07]
[1744643993921,0.23835,84620.0,84619.0,2.8e-07]
[1744643994124,0.24035,84620.0,84619.0,2.8e-07]
[1744643994961,0.23835,84620.0,84619.0,2.8e-07]
[1744643995353,0.23935,84620.0,84619.0,2.8e-07]
[1744643995801,0.001,84620.0,84619.0,0.23635328]
[1744643996203,0.001,84620.0,84619.0,0.24802972]
[1744643996540,0.002,84620.0,84619.0,0.24802972]
[1744643996747,0.002,84620.0,84619.0,0.75467126]
[1744643996978,0.236285,84644.0,84625.0,0.576336]
[1744643997251,0.0004217,84660.0,84655.0,0.236252]
[1744643997423,0.00056013,84660.0,84659.0,0.236241]
[1744643997650,0.00056013,84660.0,84659.0,0.00236215]
[1744643997833,0.00722151,84660.0,84658.0,0.23860619]
[1744643998283,0.01222151,84660.0,84659.0,0.46084154]
[1744643998516,0.00722151,84660.0,84659.0,0.47248498]
[1744643998742,0.00056013,84660.0,84659.0,0.47248498]
[1744644000115,0.002,84679.0,84678.0,0.236188]
[1744644000319,0.002,84679.0,84678.0,0.40282954]
[1744644000973,0.002,84679.0,84678.0,0.75186924]
[1744644001318,0.0004218,84683.0,84682.0,0.236177]
[1744644001525,0.0004218,84683.0,84682.0,0.69937948]
[1744644001722,0.0004218,84683.0,84682.0,0.73690848]
[1744644002366,0.05076576,84691.0,84690.0,0.34]
[1744644002706,0.05090417,84691.0,84690.0,0.62548154]
[1744644002862,0.05090417,84691.0,84690.0,0.66535415]
[1744644003040,0.03569391,84691.0,84690.0,1.11669508]
[1744644003241,0.000422,84704.0,84690.0,1.11669508]
[1744644003242,8e-07,84704.0,84701.0,0.011806]
[1744644003454,0.00046206,84704.0,84703.0,0.71150139]
[1744644003655,0.00046206,84704.0,84703.0,0.83341486]
[1744644003864,0.002,84709.0,84708.0,0.576105]
[1744644004065,0.002,84709.0,84708.0,1.31991908]
[1744644004634,0.002,84709.0,84708.0,1.36901908]
[1744644004838,0.002,84709.0,84708.0,1.32914654]
[1744644005182,0.003,84709.0,84708.0,1.33714654]
[1744644005424,0.002,84709.0,84708.0,1.38355993]
[1744644005767,0.003,84709.0,84708.0,1.39255993]
[1744644006236,0.0004223,84711.0,84710.0,0.59063985]
[1744644006568,0.011801,84734.0,84711.0,0.34]
[1744644006715,0.236039,84732.0,84711.0,0.46084154]
[1744644006916,0.011802,84731.0,84711.0,0.46084154]
[1744644007245,0.236039,84732.0,84711.0,0.62520154]
[1744644007451,0.236084,84716.0,84711.0,0.46084154]
[1744644007745,0.011803,84722.0,84710.0,0.24760848]
[1744644007746,0.011804,84717.0,84710.0,0.01150948]
[1744644007948,0.011804,84716.0,84711.0,0.001]
[1744644008152,0.236088,84714.0,84711.0,0.001]
[1744644008416,0.23606,84725.0,84711.0,0.12184154]
[1744644008609,0.236065,84723.0,84711.0,0.12184154]
[1744644008738,0.011804,84716.0,84711.0,0.16436]
[1744644008940,0.2365164,84712.0,84710.0,0.01153067]
[1744644009250,0.2365164,84712.0,84695.0,0.011807]
[1744644009251,0.236119,84703.0,84695.0,0.011807]
[1744644009456,0.236119,84703.0,84692.0,0.011807]
[1744644009678,0.247937,84699.0,84696.0,0.16436]
[1744644009834,0.472046,84738.0,84705.0,0.011805]
[1744644010034,0.247911,84708.0,84704.0,0.011805]
[1744644010401,0.236101,84710.0,84704.0,0.011805]
[1744644010607,0.236121,84703.0,84698.0,0.247937]
[1744644010740,0.011805,84707.0,84703.0,0.011805]
[1744644010935,0.011805,84705.0,84699.0,0.011806]
[1744644011141,0.236118,84704.0,84699.0,0.247933]
[1744644011542,0.011806,84701.0,84693.0,0.01151301]
[1744644011750,0.236131,84699.0,84696.0,0.011806]
[1744644011954,0.011805,84707.0,84691.0,0.50436]
[1744644011955,0.23641638,84712.0,84708.0,0.011805]
[1744644012165,0.00032238,84712.0,84711.0,0.236096]
[1744644012383,0.00032238,84712.0,84709.0,0.247907]
[1744644012585,0.236096,84711.0,84708.0,0.011805]
[1744644012796,0.00032238,84712.0,84708.0,0.011805]
[1744644013132,0.2361,84710.0,84707.0,0.24791]
[1744644013545,0.00525832,84709.0,84707.0,0.24791]
[1744644014387,0.236097,84711.0,84707.0,0.24791]
[1744644014522,0.00032238,84712.0,84710.0,0.236099]
[1744644014732,0.00032238,84712.0,84711.0,0.12084154]
[1744644014937,0.00032238,84712.0,84711.0,0.62752223]
[1744644015142,0.00032238,84712.0,84711.0,0.62516154]
[1744644015745,0.00032238,84712.0,84711.0,0.63381456]
[1744644016035,0.00032238,84712.0,84711.0,0.62516154]
[1744644016290,0.00332238,84712.0,84711.0,0.62516154]
[1744644016693,0.00032238,84712.0,84711.0,0.63422606]
[1744644017109,0.00032238,84712.0,84711.0,0.63622606]
[1744644017457,0.00032238,84712.0,84711.0,0.63522606]
[1744644017795,0.00032238,84712.0,84711.0,0.63622606]
[1744644018195,0.00032238,84712.0,84711.0,0.63822606]
[1744644019616,0.00032238,84712.0,84711.0,0.63422606]
[1744644019844,0.00032238,84712.0,84711.0,0.63722606]
[1744644020033,0.00032238,84712.0,84711.0,0.47190606]
[1744644020334,0.00032238,84712.0,84711.0,0.63622606]
[1744644020646,0.00032238,84712.0,84711.0,0.63922606]
[1744644020844,0.00032238,84712.0,84711.0,0.63016154]
[1744644021016,0.00032238,84712.0,84711.0,0.62816154]
[1744644021228,0.00032238,84712.0,84711.0,0.62516154]
[1744644022220,0.00032238,84712.0,84711.0,0.50432]
[1744644022428,0.00032238,84712.0,84711.0,0.344]
[1744644022631,0.00032238,84712.0,84711.0,0.004]
[1744644022826,0.00032238,84712.0,84710.0,0.236099]
[1744644023028,0.00032238,84712.0,84711.0,0.001]
[1744644023239,0.00032238,84712.0,84711.0,0.002]
[1744644023669,0.00032238,84712.0,84711.0,0.001]
[1744644024258,0.0055552,84712.0,84711.0,0.001]
[1744644025495,0.12639674,84712.0,84711.0,0.001]
[1744644025837,0.235188,84679.0,84669.0,0.01181]
[1744644026060,0.235188,84679.0,84677.0,0.00130386]
[1744644026195,0.00506685,84678.0,84677.0,0.00130386]
[1744644026816,0.236188,84678.0,84677.0,0.00130386]
[1744644026993,0.24117318,84678.0,84677.0,0.00130386]
[1744644027824,0.00498518,84678.0,84677.0,0.00130386]
[1744644028036,0.00498518,84678.0,84677.0,0.23749486]
[1744644028241,0.011807,84689.0,84685.0,0.011808]
[1744644028411,0.011807,84691.0,84687.0,0.011808]
[1744644028614,0.236148,84693.0,84689.0,0.011807]
[1744644028615,0.247958,84692.0,84689.0,0.011807]
[1744644028816,0.247958,84692.0,84685.0,0.011808]
[1744644028817,0.011807,84689.0,84685.0,0.011808]
[1744644029015,0.011807,84689.0,84677.0,0.23749486]
[1744644029016,0.011809,84680.0,84677.0,0.00130386]
[1744644029228,0.236187,84679.0,84677.0,0.00130386]
[1744644029423,0.24799,84681.0,84678.0,0.247997]
[1744644029622,0.002,84689.0,84687.0,0.236162]
[1744644029848,0.02271683,84699.0,84690.0,0.247961]
[1744644030046,0.13264754,84698.0,84693.0,0.247954]
[1744644030221,0.236141,84695.0,84692.0,0.247955]
[1744644030430,0.011806,84697.0,84693.0,0.011807]
[1744644030635,0.236142,84695.0,84690.0,0.247961]
[1744644030835,0.247932,84701.0,84697.0,0.011806]
[1744644031034,0.247916,84706.0,84700.0,0.236127]
[1744644031259,0.011806,84702.0,84699.0,0.011806]
[1744644031460,0.236125,84701.0,84699.0,0.011806]
[1744644031797,0.247936,84699.0,84695.0,0.236141]
[1744644031999,0.24794,84698.0,84694.0,0.247949]
[1744644032416,0.24794,84698.0,84695.0,0.247947]
[1744644032594,0.24794,84698.0,84695.0,0.011807]
[1744644033359,0.24894,84698.0,84695.0,0.011807]
[1744644033716,0.236186,84679.0,84661.0,0.176011]
[1744644033904,0.247995,84680.0,84672.0,0.01181]
[1744644034106,0.247973,84687.0,84656.0,0.1642]
[1744644034107,0.011807,84693.0,84686.0,0.011808]
[1744644034339,0.011807,84693.0,84687.0,0.247971]
[1744644034340,0.011807,84692.0,84687.0,0.247971]
[1744644034536,0.011807,84693.0,84689.0,0.011807]
[1744644034836,0.011807,84692.0,84688.0,0.247967]
[1744644035273,0.4165,84697.0,84691.0,0.247959]
[1744644035274,0.011807,84695.0,84691.0,0.247959]
[1744644035477,0.4165,84697.0,84695.0,0.236141]
[1744644035685,0.236108,84707.0,84704.0,0.011805]
[1744644035880,0.236108,84707.0,84701.0,0.011806]
[1744644035881,0.236116,84704.0,84701.0,0.247929]
[1744644036084,0.236111,84706.0,84704.0,0.011805]
[1744644036313,0.011805,84708.0,84705.0,0.011805]
[1744644036517,0.247913,84707.0,84704.0,0.247919]
[1744644036890,0.247916,84706.0,84703.0,0.236118]
[1744644037193,0.236113,84705.0,84702.0,0.247925]
[1744644037699,0.011807,84695.0,84686.0,0.011808]
[1744644037920,0.011808,84682.0,84674.0,0.01181]
[1744644038095,0.011808,84686.0,84674.0,0.01181]
[1744644038096,0.236172,84684.0,84680.0,0.34]
[1744644038232,0.011808,84688.0,84683.0,0.011808]
[1744644038436,0.4165,84699.0,84693.0,0.011807]
[1744644038681,0.4165,84699.0,84698.0,0.236133]
[1744644038887,0.24793,84701.0,84697.0,0.236135]
[1744644039174,0.011806,84701.0,84697.0,0.247941]
[1744644039454,0.011805,84709.0,84702.0,0.23612]
[1744644039671,0.003,84699.0,84690.0,0.011807]
[1744644039849,0.007,84699.0,84690.0,0.011807]
[1744644040062,0.011807,84692.0,84684.0,0.011808]
[1744644040259,0.011807,84689.0,84685.0,0.236168]
[1744644040459,0.236168,84686.0,84682.0,0.01226926]
[1744644040605,0.236169,84685.0,84682.0,0.00046126]
[1744644040806,0.236174,84683.0,84682.0,0.00046126]
[1744644041008,0.00497623,84685.0,84682.0,0.00046126]
[1744644041274,0.00496714,84683.0,84682.0,0.23663826]
[1744644041561,0.236174,84683.0,84682.0,0.00046126]
[1744644041778,0.236169,84685.0,84682.0,0.00046126]
[1744644041921,0.00496714,84683.0,84682.0,0.24844526]
[1744644042126,0.001,84685.0,84684.0,0.236172]
[1744644042353,0.00597623,84685.0,84684.0,0.236172]
[1744644042505,0.001,84685.0,84684.0,0.236172]
[1744644042711,0.236174,84683.0,84682.0,0.00046126]
[1744644042939,0.24114114,84683.0,84682.0,0.00046126]
[1744644043140,0.00596714,84683.0,84682.0,0.00046126]
[1744644043339,0.001,84683.0,84682.0,0.23663826]
[1744644043944,0.238174,84683.0,84682.0,0.00046126]
[1744644044383,0.24314114,84683.0,84682.0,0.00046126]
[1744644045440,0.36398268,84683.0,84682.0,0.00046126]
[1744644045923,0.37852353,84683.0,84682.0,0.00046126]
[1744644046255,0.37752353,84683.0,84682.0,0.00046126]
[1744644046672,0.38052353,84683.0,84682.0,0.00046126]
[1744644047097,0.00896714,84683.0,84682.0,0.00046126]
[1744644047261,0.24414114,84683.0,84682.0,0.00046126]
[1744644047819,0.24714114,84683.0,84682.0,0.00046126]
[1744644047954,0.24414114,84683.0,84682.0,0.00046126]
[1744644048502,0.24814114,84683.0,84682.0,0.00046126]
[1744644049634,0.01196714,84683.0,84682.0,0.23663826]
[1744644049845,0.01196714,84683.0,84682.0,0.3574798]
[1744644050037,0.007,84683.0,84682.0,0.3574798]
[1744644050442,0.007,84683.0,84682.0,0.36946828]
[1744644050613,0.003,84683.0,84682.0,0.24862674]
[1744644050942,0.005,84683.0,84682.0,0.36946828]
[1744644051157,0.005,84683.0,84682.0,0.23663826]
[1744644051367,0.003,84683.0,84682.0,0.23663826]
[1744644051866,0.236134,84698.0,84693.0,0.247952]
[1744644052091,0.011805,84705.0,84701.0,0.011806]
[1744644052363,0.247917,84706.0,84701.0,0.011806]
[1744644052536,0.236127,84700.0,84698.0,0.011806]
[1744644052945,0.011806,84702.0,84698.0,0.247936]
[1744644053147,0.23612,84703.0,84699.0,0.247935]
[1744644053322,0.4205,84704.0,84702.0,0.236121]
[1744644053522,0.236119,84703.0,84697.0,0.247941]
[1744644053727,0.236119,84703.0,84681.0,0.295224]
[1744644053728,0.002,84698.0,84692.0,0.236149]
[1744644053943,0.002,84698.0,84667.0,0.403425]
[1744644053944,0.236154,84691.0,84685.0,0.011808]
[1744644054145,0.011808,84688.0,84682.0,0.01230258]
[1744644054394,0.011808,84688.0,84684.0,0.247977]
[1744644054567,0.236161,84688.0,84685.0,0.011808]
[1744644055179,0.236159,84689.0,84686.0,0.011808]
[1744644055870,0.011807,84690.0,84684.0,0.011808]
[1744644055871,0.236164,84687.0,84684.0,0.011808]
[1744644056069,0.236163,84688.0,84684.0,0.011808]
[1744644056273,0.011807,84690.0,84685.0,0.011808]
[1744644056566,0.011808,84688.0,84682.0,0.00046126]
[1744644056767,0.236174,84683.0,84682.0,0.00046126]
[1744644057417,0.35701554,84683.0,84682.0,0.00046126]
[1744644057885,0.37155639,84683.0,84682.0,0.00046126]
[1744644058383,0.37355639,84683.0,84682.0,0.00046126]
[1744644058772,0.38250839,84683.0,84682.0,0.00046126]
[1744644059190,0.38550839,84683.0,84682.0,0.00046126]
[1744644059392,0.38850839,84683.0,84682.0,0.00046126]
[1744644059692,0.38550839,84683.0,84682.0,0.00046126]
[1744644060242,0.13479354,84683.0,84682.0,0.00046126]
[1744644060434,0.37096754,84683.0,84682.0,0.00046126]
[1744644060643,0.37496754,84683.0,84682.0,0.00046126]
[1744644061942,0.017952,84683.0,84682.0,0.23663826]
[1744644062269,0.007,84683.0,84682.0,0.00046126]
[1744644062477,0.243174,84683.0,84682.0,0.00046126]
[1744644063496,0.007,84683.0,84682.0,0.00046126]
[1744644063655,0.007,84683.0,84682.0,0.23663826]
[1744644064735,0.004,84683.0,84682.0,0.23663826]
[1744644064940,0.011807,84689.0,84682.0,0.00046126]
[1744644065173,0.237174,84683.0,84682.0,0.00046126]
[1744644065408,0.2440815,84683.0,84682.0,0.00046126]
[1744644065819,0.37946389,84683.0,84682.0,0.00046126]
[1744644066030,0.40233736,84683.0,84682.0,0.00046126]
[1744644066438,0.40033736,84683.0,84682.0,0.00046126]
[1744644066639,0.40133736,84683.0,84682.0,0.00046126]
[1744644066881,0.81783736,84683.0,84682.0,0.00046126]
[1744644067087,0.25072885,84678.0,84677.0,6e-07]
[1744644067238,0.83437039,84678.0,84677.0,1e-08]
[1744644067451,0.236253,84655.0,84639.0,0.16408]
[1744644067621,0.236253,84655.0,84632.0,0.011815]
[1744644067622,0.77359454,84655.0,84634.0,0.011815]
[1744644067828,0.80212268,84655.0,84634.0,0.011815]
[1744644068081,0.8130586,84655.0,84636.0,0.011815]
[1744644068288,0.8130586,84655.0,84639.0,0.011814]
[1744644068432,0.8130586,84655.0,84637.0,0.248116]
[1744644068985,0.8130586,84655.0,84635.0,0.011815]
[1744644069201,0.8130586,84655.0,84638.0,0.011815]
[1744644069401,0.8130586,84655.0,84636.0,0.248119]
[1744644069629,0.8130586,84655.0,84639.0,0.011814]
[1744644069630,0.8170586,84655.0,84639.0,0.011814]
[1744644069765,0.8200586,84655.0,84639.0,0.011814]
[1744644070183,0.8200586,84655.0,84636.0,0.248119]
[1744644070390,0.8200586,84655.0,84638.0,0.011815]
[1744644070592,0.8200586,84655.0,84639.0,0.248109]
[1744644070794,0.8200586,84655.0,84642.0,0.011814]
[1744644070991,0.83459945,84655.0,84626.0,0.0008438]
[1744644071365,0.87394478,84655.0,84630.0,0.011816]
[1744644071494,0.87394478,84655.0,84637.0,0.011815]
[1744644071707,0.86994478,84655.0,84637.0,0.011815]
[1744644071912,0.82394478,84655.0,84637.0,0.011815]
[1744644072115,0.82794478,84655.0,84654.0,6e-07]
[1744644072459,0.59080185,84652.0,84651.0,6e-07]
[1744644072636,0.13538239,84652.0,84651.0,0.2362646]
[1744644072787,0.14271501,84652.0,84651.0,0.2362646]
[1744644072992,0.14271501,84652.0,84651.0,6e-07]
[1744644073328,0.15365093,84652.0,84651.0,6e-07]
[1744644073707,0.15765093,84652.0,84651.0,6e-07]
[1744644074153,0.15365093,84652.0,84651.0,6e-07]
[1744644074355,0.03280939,84652.0,84651.0,6e-07]
[1744644074576,0.03580939,84652.0,84651.0,6e-07]
[1744644074938,0.03680939,84652.0,84651.0,6e-07]
[1744644075362,0.02571943,84652.0,84651.0,6e-07]
[1744644075564,0.003,84652.0,84651.0,6e-07]
[1744644075794,8.163e-05,84655.0,84654.0,0.236255]
[1744644075970,0.003,84652.0,84651.0,6e-07]
[1744644076174,0.236258,84653.0,84651.0,6e-07]
[1744644076509,0.01493592,84652.0,84651.0,6e-07]
[1744644076721,0.13577746,84652.0,84651.0,0.0010006]
[1744644076926,0.13177746,84652.0,84651.0,0.0010006]
[1744644077469,0.13177746,84652.0,84651.0,6e-07]
[1744644078498,0.54827746,84652.0,84651.0,6e-07]
[1744644079759,0.55027746,84652.0,84651.0,6e-07]
[1744644079933,0.55127746,84652.0,84651.0,6e-07]
[1744644081677,0.54034154,84652.0,84651.0,6e-07]
[1744644082038,0.4195,84652.0,84651.0,6e-07]
[1744644083464,0.003,84652.0,84651.0,0.50884214]
[1744644083994,0.001,84652.0,84651.0,0.50884214]
[1744644084232,8.163e-05,84655.0,84652.0,0.248074]
[1744644084446,8.163e-05,84655.0,84654.0,0.34]
[1744644084623,8.163e-05,84655.0,84654.0,0.69709654]
[1744644085498,8.163e-05,84655.0,84654.0,0.74539654]
[1744644085499,6.3e-07,84655.0,84654.0,0.74539654]
[1744644085742,0.236118,84704.0,84696.0,0.011806]
[1744644085957,0.247942,84697.0,84693.0,0.247953]
[1744644086190,0.00675058,84696.0,84693.0,0.247953]
[1744644086428,0.00675058,84696.0,84694.0,0.236142]
[1744644087150,0.00674376,84695.0,84694.0,0.247949]
[1744644087292,0.011806,84698.0,84694.0,0.247949]
[1744644087293,0.006,84696.0,84694.0,0.247949]
[1744644087496,0.00674376,84695.0,84694.0,0.247949]
[1744644088166,0.00674376,84695.0,84694.0,0.011807]